Cogmind - Beta 16 --- EXPLORER MODE // 2026.01.13 @ 14:30:09 Player: K.K.Y. Result: Destroyed by 7F-JDQ(R) with Subdweller Beam Cannon Performance ------------- Evolutions (0) 0 Regions Visited (3) 600 Robots Destroyed (55) 275 Value Destroyed (1125) 1125 Prototype IDs (6) 120 Alien Tech Used (0) 0 Bonus (0) 0 TOTAL SCORE: 2120 Bonus ------- None Cogmind --------- Core Integrity 0/250 Matter 296/300 Energy 100/100 System Corruption 0% Temperature Cool (9) Movement Rolling (110) Ox2 Location -10/Subcaves Parts ------- > --- POWER (1) -------- (None) > --- PROPULSION (2) --- Wheel > --- UTILITY (3) ------ Large Storage Unit Light Armor Plating > --- WEAPON (2) ------- Heavy Battle Rifle Makeshift Axe > --- INVENTORY (15) --- Light Nuclear Core Improved Heat Sink Improved Heat Sink Structural Scanner Sensor Array Improved Terrain Scanner Light Armor Plating Makeshift Light Armor Plating Makeshift Light Armor Plating Subdweller Laser Subdweller Laser Powered Cannon Mining Laser Multitool Peak State ------------ > --- POWER ------------ Light Nuclear Core > --- PROPULSION ------- Wheel > --- UTILITY ---------- Large Storage Unit Light Armor Plating Light Armor Plating > --- WEAPON ----------- Heavy Battle Rifle Battle Cannon > --- INVENTORY -------- Light Nuclear Core Improved Heat Sink Improved Heat Sink Structural Scanner Sensor Array Improved Terrain Scanner Light Armor Plating Makeshift Light Armor Plating Makeshift Light Armor Plating Subdweller Laser Subdweller Laser Powered Cannon Mining Laser Multitool [Rating: 17] Favorites ----------- Power Ion Engine Engine Ion Engine Power Core Light Nuclear Core Propulsion Light Treads Treads Light Treads Wheel Wheel Flight Unit Flight Unit Utility Light Armor Plating Device Improved Heat Sink Storage Large Storage Unit Protection Light Armor Plating Weapon Small Laser Energy Gun Small Laser Ballistic Gun Heavy Battle Rifle Ballistic Cannon Battle Cannon Slashing Weapon Makeshift Axe Build | -11 -10 -10 -10 ------- Run | Yrd Mat Min Sub Slots Evolved 1 | . 1 . . Power . | . . . . Propulsion . | . . . . Utility 1 | . 1 . . Weapon . | . . . . Parts Attached 27 | 6 4 5 12 Power 2 | 1 . . 1 Engine 1 | 1 . . . Core 1 | . . . 1 Reactor . | . . . . Propulsion 6 | 2 1 . 3 Treads 4 | 2 1 . 1 Leg . | . . . . Wheel 1 | . . . 1 Hover . | . . . . Flight 1 | . . . 1 Utility 12 | 2 2 4 4 Device 3 | . 1 2 . Storage 2 | . 1 1 . Processor . | . . . . Hackware . | . . . . Protection 7 | 2 . 1 4 Artifact . | . . . . Weapon 7 | 1 1 1 4 Energy Gun 2 | 1 1 . . Energy Cannon . | . . . . Ballistic Gun 3 | . . 1 2 Ballistic Cannon 1 | . . . 1 Launcher . | . . . . Special Weapon . | . . . . Impact Weapon . | . . . . Slashing Weapon 1 | . . . 1 Piercing Weapon . | . . . . Special Melee Weapon . | . . . . Unidentified Prototypes . | . . . . Parts Lost 13 | . . 2 11 Power 2 | . . . 2 Propulsion 3 | . . . 3 Utility 5 | . . 1 4 Weapon 3 | . . 1 2 Highest Loss Streak 5 | . . 1 5 To Critical Strikes . | . . . . Average Backups 10 | 1 8 9 12 Power . | . . . . Propulsion . | . . . . Utility 8 | . 7 8 8 Weapon 2 | . 1 1 3 Tool/Special . | . . . . Unused Backups 12 | . . . 12 Power 1 | . . . 1 Propulsion . | . . . . Utility 6 | . . . 6 Weapon 4 | . . . 4 Tool/Special 1 | . . . 1 Average Slot Usage (%) 85 | . 97 95 74 Engine 6 | . 12 12 1 Treads 17 | . 25 25 10 Device 6 | . 7 14 2 Storage 11 | . 11 12 12 Protection 16 | . 17 9 20 Energy Gun 10 | . 23 14 1 Ballistic Gun 8 | . . 5 13 Ballistic Cannon 3 | . . . 7 Peak Build Rating 17 | 6 11 11 17 Average Rating 10 | 4 9 10 11 On Entrance 7 | . 6 11 11 Avg Prop Armor Cover (%) . | . . . . Naked Turns . | . . . . Heaviest Build 38 | 11 22 31 38 Greatest Support 40 | 40 40 40 40 Greatest Overweight (x) 10 | . . . 10 Average Overweight (x) . | . . . 1 Largest Inventory Capacity 15 | 5 10 15 15 Average Capacity 13 | 5 9 13 15 Most Carried 15 | 5 10 10 15 Average Carried 10 | 1 8 9 12 Final Capacity 15 | 5 10 15 15 Final Carried 15 | 3 10 9 15 Class Distribution -------------------- 100% | Hacker-Mutant Dominant Class ---------------- Hacker-Mutant | -10/Materials Hacker-Mutant | -10/Mines Hacker-Mutant | -10/Subcaves Resources | -11 -10 -10 -10 ----------- Run | Yrd Mat Min Sub Matter Collected 798 | 64 215 46 473 Remotely . | . . . . Salvage Created 1482 | 173 569 262 478 Parts 109 | 12 46 10 41 Haulers Intercepted 2 | . 2 . . Recyclers Shooed 1 | . . 1 . Parts Field Recycled . | . . . . Retrieved Matter . | . . . . Parts Self-Destructed . | . . . . Prevented . | . . . . Parts Restored . | . . . . Kills | -11 -10 -10 -10 ------- Run | Yrd Mat Min Sub Combat Hostiles Destroyed 34 | . 11 7 16 Guns 29 | . 10 6 13 Cannons 3 | . . . 3 Classes Destroyed 14 | 2 7 1 4 Worker 2 | . 2 . . Builder 4 | . 3 1 . Tunneler 4 | 4 . . . Hauler 2 | . 2 . . Recycler 3 | 1 . 2 . Mechanic 1 | . 1 . . Turret 2 | . . . 2 Watcher 3 | . 3 . . Swarmer 15 | . 6 4 5 Grunt 7 | . 5 2 . Sentry 1 | . . . 1 Demolisher 1 | . . 1 . Artisan 1 | . . . 1 Subdweller 10 | . . . 10 Best Kill Streak 7 | 5 7 3 4 Combat Bots Only 4 | . 4 2 4 Max Kills in Single Turn 1 | 1 1 1 1 Gunslinging . | . . . . Exploded . | . . . . Melee . | . . . . Uniques/NPCs Destroyed . | . . . . Combat | -11 -10 -10 -10 -------- Run | Yrd Mat Min Sub Hostile Shots Fired 336 | . 39 44 253 Missed 116 | . 11 9 96 Hits 220 | . 28 35 157 Projectile 220 | . 28 35 157 AOE 4 | . . 4 . Critical Strikes 2 | . . . 2 Damage Taken 1659 | . 227 322 1110 Core 263 | . 13 57 193 Absorbed by Shields . | . . . . Redirected to Shielding 2 | . 2 . . Ignored by Resistances 1067 | . 143 207 717 Core Remaining (%) 100 | 100 . . . Volleys Fired 188 | 11 51 39 87 Largest 2 | 1 2 2 2 Hottest 90 | 50 90 90 66 Shots Fired 300 | 11 76 49 164 Gun 264 | 11 76 49 128 Cannon 36 | . . . 36 Launcher . | . . . . Special . | . . . . Kinetic 142 | . . . 142 Thermal 158 | 11 76 49 22 Explosive . | . . . . Electromagnetic . | . . . . Robot Hit Streak 71 | 11 34 23 71 Robot Miss Streak 2 | . 2 2 1 Penetration Max . | . . . . Secondary Targets 4 | . 1 1 2 Max Gunslinging Chain 1 | . 1 1 1 Shots Hit Robots 249 | 11 62 44 132 Core Hits 85 | 6 29 13 37 Critical Kills . | . . . . Critical Parts Destroyed . | . . . . Critical Strikes 8 | 1 6 1 . Burn 8 | 1 6 1 . Melee Attacks 1 | . . . 1 Impact . | . . . . Slashing 1 | . . . 1 Piercing . | . . . . Sneak Attacks . | . . . . Combat Hostiles . | . . . . Follow-up Attacks . | . . . . Damage Inflicted 3125 | 138 766 504 1717 Guns 2687 | 138 765 500 1284 Cannons 400 | . . . 400 Explosions . | . . . . Melee 33 | . . . 33 Ramming 5 | . 1 4 . Kinetic 1466 | . . . 1466 Thermal 1621 | 138 765 500 218 Explosive . | . . . . Electromagnetic . | . . . . Impact . | . . . . Slashing 33 | . . . 33 Piercing . | . . . . Highest Corruption . | . . . . Average Corruption . | . . . . Corruption Purged . | . . . . Corruption Blocked . | . . . . Overload Shots . | . . . . Overflow Damage . | . . . . Projectiles . | . . . . Explosions . | . . . . Melee . | . . . . Knockbacks 5 | . . . 5 Impact . | . . . . Kinetic 5 | . . . 5 Secondary . | . . . . Self-Inflicted Damage 48 | . 48 . . Shots 1 | . 1 . . Rammed . | . . . . Targets Rammed 2 | . 1 1 . Kicked . | . . . . Crushed 2 | . 1 1 . Highest Temperature 309 | 144 309 . 11 Average Temperature 84 | 68 91 . 6 Received Heat Transfer 816 | . 75 108 633 Siege Activations . | . . . . Martial Activations . | . . . . Shielding Activations . | . . . . Robots Disrupted . | . . . . Combat Hostiles . | . . . . Robots Corrupted . | . . . . Combat Hostiles . | . . . . Parts Fried . | . . . . Impact Corruptions . | . . . . Robots Melted 2 | . 1 1 . Combat Hostiles 2 | . 1 1 . Parts Melted 10 | 1 7 2 . Heat Transferred 4871 | 481 2595 1295 500 Parts Sabotaged . | . . . . Parts Stolen . | . . . . Parts Stripped . | . . . . Power Chain Reactions . | . . . . Alert | -11 -10 -10 -10 ------- Run | Yrd Mat Min Sub Maximum Alert Level . | . . . . Low Security (%) 100 | 100 100 100 . Level 1 . | . . . . Level 2 . | . . . . Level 3 . | . . . . Level 4 . | . . . . Level 5 . | . . . . High Security . | . . . . Max Security . | . . . . Peak Influence 112 | 15 112 40 . Initial 4 | . 4 . . Average 9 | 3 16 3 . Influence Increases 852 | 25 407 185 235 Destroy 0b10 Robot/C 520 | . 220 140 160 Destroy 0b10 Robot/NC 95 | 25 55 15 . Destroy Leader 90 | . 60 30 . Successful Hack 38 | . 38 . . Disable Machine 8 | . 8 . . Destroy Structure 11 | . 11 . . Lose Combat Pursuer 90 | . 15 . 75 Influence Decreases 852 | 15 417 185 235 Entered New Map 6 | . 6 . . Time Decay 786 | 15 411 175 185 Lost Part 60 | . . 10 50 Squads Dispatched 1 | . 1 . . Investigation 1 | . 1 . . Extermination . | . . . . Reinforcement . | . . . . Assault . | . . . . Garrison . | . . . . Intercept . | . . . . Searches Triggered . | . . . . Construction Impeded . | . . . . Haulers Reinforced . | . . . . Active Scanning Responses . | . . . . Cargo Convoy Interrupts . | . . . . Stealth | -11 -10 -10 -10 --------- Run | Yrd Mat Min Sub Distress Signals . | . . . . Communications Jammed . | . . . . Distress Signals . | . . . . Times Spotted 47 | . 15 9 23 Peak Tracking Total 6 | . 4 5 6 Tactical Retreats 4 | . 1 . 3 Traps | -11 -10 -10 -10 ------- Run | Yrd Mat Min Sub Traps Triggered 2 | . 2 . . Indirectly . | . . . . Trap Hack Attempts . | . . . . Triggered . | . . . . Disarmed . | . . . . Reprogrammed . | . . . . Reused . | . . . . Traps Extracted . | . . . . Installed . | . . . . Triggered . | . . . . Machines | -11 -10 -10 -10 ---------- Run | Yrd Mat Min Sub Machines Disabled 3 | . 2 . 1 Max in Single Turn 2 | . 2 . 1 Machines Repaired . | . . . . Machines Dismantled . | . . . . Machines Sabotaged . | . . . . Overloaded Fab Kills . | . . . . Hacking | -11 -10 -10 -10 --------- Run | Yrd Mat Min Sub Machines Accessed 7 | . 7 . . Terminals 7 | . 7 . . Fabricators . | . . . . Repair Stations . | . . . . Recycling Units . | . . . . Scanalyzers . | . . . . Garrison Access . | . . . . Total Hacks 21 | . 21 . . Successful 16 | . 16 . . Failed 5 | . 5 . . Catastrophic 1 | . 1 . . Database Lockouts . | . . . . Manual 15 | . 15 . . Terminals 21 | . 21 . . Fabricators . | . . . . Repair Stations . | . . . . Recycling Units . | . . . . Scanalyzers . | . . . . Garrison Access . | . . . . Terminal Hacks 9 | . 9 . . Robot Analysis 1 | . 1 . . Prototype ID Bank 6 | . 6 . . Locate Traps 2 | . 2 . . Fabricator Hacks . | . . . . Repair Station Hacks . | . . . . Recycling Unit Hacks . | . . . . Scanalyzer . | . . . . Garrison Access Hacks . | . . . . Unauthorized Hacks 7 | . 7 . . Terminals 7 | . 7 . . Botnet 7 | . 7 . . Fabricators . | . . . . Repair Stations . | . . . . Recycling Units . | . . . . Scanalyzers . | . . . . Garrison Access . | . . . . Data Cores Recovered . | . . . . Used . | . . . . Hacking Detections 7 | . 7 . . Full Trace Events 1 | . 1 . . Feedback Events . | . . . . Feedback Blocked . | . . . . Robot Schematics Acquired . | . . . . Robots Built . | . . . . Authchips . | . . . . Time . | . . . . Total Robot Build Rating . | . . . . Part Schematics Acquired . | . . . . Parts Built . | . . . . Authchips . | . . . . Time . | . . . . Total Part Build Rating . | . . . . Part Studies Acquired . | . . . . Parts Repaired . | . . . . Time . | . . . . Parts Recycled . | . . . . Recycled Matter . | . . . . Retrieved Matter . | . . . . Retrieved Components . | . . . . Parts Scanalyzed . | . . . . Part Schematics Acquired . | . . . . Parts Damaged . | . . . . Bothacking | -11 -10 -10 -10 ------------ Run | Yrd Mat Min Sub Used RIF Installer . | . . . . Robots Hacked . | . . . . Non-combat . | . . . . Combat . | . . . . Robot Hacks Applied . | . . . . Relay Couplers Released . | . . . . Fabnet Peak Effective % . | . . . . Robots Rewired . | . . . . Allies Hacked . | . . . . Hacks Repelled . | . . . . Allies | -11 -10 -10 -10 -------- Run | Yrd Mat Min Sub Total Allies . | . . . . Largest Group . | . . . . Highest-Rated Group . | . . . . Highest-Rated Ally . | . . . . Total Orders . | . . . . Ally Attacks . | . . . . Total Damage . | . . . . Kills . | . . . . Allies Corrupted . | . . . . Allies Melted . | . . . . Intel | -11 -10 -10 -10 ------- Run | Yrd Mat Min Sub Active Infowar (turns) 656 | . . 320 336 Sensors 656 | . . 320 336 Terrain 546 | . . 211 335 Robot Analysis Total 1 | . 1 . . Derelict Logs Recovered 3 | . . 2 1 Drone Launches . | . . . . Drone Recoveries . | . . . . Exploration | -11 -10 -10 -10 ------------- Run | Yrd Mat Min Sub Turns Passed 5979 | 75 1487 1395 3022 Spaces Moved 2562 | 33 802 743 984 Core 69 | 12 . . 57 Treads 2144 | 21 802 743 578 Legs . | . . . . Wheels 349 | . . . 349 Hover . | . . . . Flight . | . . . . Fastest Speed 50 | 50 160 160 110 Average Speed 175 | 120 160 160 202 Slowest Speed 550 | 160 160 160 550 Overloaded Moves . | . . . . Propulsion Burnouts . | . . . . Robots Hopped . | . . . . Potential Cave-ins . | . . . . Cave-ins Triggered . | . . . . Exploration Rate (%) 64 | 3 98 100 58 Regions Visited 3 Branch Regions 2 Pre-discovered Areas 2 | . . 1 1 Known Exits Taken 3 | 1 1 1 . Unknown Exits Taken . | . . . . Scrap Searched 9 | . . . 9 Spaces Dug . | . . . . Terrain Destroyed 13 | . 13 . . Melee . | . . . . Projectile . | . . . . AOE 13 | . 13 . . Terrain Rammed . | . . . . Walls Destroyed . | . . . . Machines Disabled . | . . . . Actions | -11 -10 -10 -10 --------- Run | Yrd Mat Min Sub Total 3750 | 57 929 900 1864 Wait 929 | . 61 111 757 Move 2559 | 32 801 742 984 Hop . | . . . . Pick Up 35 | 8 10 1 16 Fast Attach 3 | 1 . . 2 Attach 16 | 5 2 2 7 Detach 1 | . . . 1 Swap 9 | . 2 3 4 Drop 7 | . 1 1 5 Fire 188 | 11 51 39 87 Melee 1 | . . . 1 Ram . | . . . . Kick . | . . . . Crush 2 | . 1 1 . Escape Stasis . | . . . . Rewire . | . . . . Trap . | . . . . Miscellaneous . | . . . . Route ------- -11/Scrapyard -10/Materials (discovered 4 exits: *Mat x3 / *Min) -10/Mines (discovered 4 exits: *Mat x2 / *Exi / *Sub) -10/Subcaves (discovered 3 exits: *Mat x2 / *Rec) History --------- Turn | Location | Event 27 | -11/Scrapyard | Identified exit to Materials 27 | -11/Scrapyard | Discovered exit to Materials (range 16) 76 | -11/Scrapyard | Entered Materials 76 | -10/Materials | Evolved 1 slot: Utility x1 313 | -10/Materials | Build established: Hacker-Mutant 505 | -10/Materials | Identified exit to Mines 505 | -10/Materials | Discovered exit to Mines (range 12) 921 | -10/Materials | Identified exit to Materials 921 | -10/Materials | Discovered exit to Materials (range 4) 1024 | -10/Materials | Discovered exit to Materials (range 16) 1215 | -10/Materials | Discovered exit to Materials (range 16) 1563 | -10/Materials | Entered Mines 1578 | -10/Mines | Discovered exit to Materials (range 14) 1824 | -10/Mines | Assembled infested the area 1962 | -10/Mines | Identified exit to Exiles 1962 | -10/Mines | Discovered exit to Exiles (range 5) 2123 | -10/Mines | Learned Materials stockpile data 2326 | -10/Mines | Discovered exit to Materials (range 5) 2646 | -10/Mines | Identified exit to Subcaves 2646 | -10/Mines | Discovered exit to Subcaves (range 12) 2958 | -10/Mines | Entered Subcaves 2959 | -10/Subcaves | Approached by a straggling Scientist 2962 | -10/Subcaves | Learned location of Zion (-7) 3039 | -10/Subcaves | Core integrity fell below 50% 3256 | -10/Subcaves | Identified exit to Recycling 3256 | -10/Subcaves | Discovered exit to Recycling (range 13) 3350 | -10/Subcaves | Core integrity fell below 20% 3378 | -10/Subcaves | Lost 5 parts (1p2n1u1w) 4204 | -10/Subcaves | A swath of the cavern ceiling suddenly collapsed 4276 | -10/Subcaves | Identified exit to Materials 4276 | -10/Subcaves | Discovered exit to Materials (range 9) 5312 | -10/Subcaves | Visited 4L-MR0's lab 5352 | -10/Subcaves | Found Prototype Energy Cannon 5483 | -10/Subcaves | Lost 3 parts (1n2u) 5561 | -10/Subcaves | Discovered exit to Materials (range 6) 5980 | -10/Subcaves | Destroyed by 7F-JDQ(R) with Subdweller Beam Cannon Last Messages --------------- 05647_ Battle Cannon destroyed. 05649_ Lgt. Nuclear Core destroyed. 05655_ PS-74I(R) destroyed. 05657_ Acquired 12 matter. 05658_ Acquired 3 matter. 05762_ BF-H0P(R) destroyed. 05765_ Acquired 37 matter. 05766_ Searching scrap... 05766_ Found Sub. Monowheel. 05766_ Found 38 Matter. 05767_ Acquired 20 matter. 05767_ Searching scrap... 05767_ Found Flamer. 05767_ Found 65 Matter. 05769_ Searching scrap... 05769_ Found Mak. Axe. 05769_ Found Sub. Beam Cannon. 05771_ Acquired Mak. Axe. 05777_ Acquired 10 matter. 05977_ Lgt. Armor Plating destroyed. Map ----- +----------------------------------------------------+ | ??????????????#### ##### # | | ????????????????# | | ?????????????????## | | ??????????????????# #### | | ??????????????????# ####### | | ??????????????????#####??## | | ?????????????????????????# | | ?????????????????????????# | | ?????????????????????????## | | ??????????????####??????### | | ??????????????# ##???# ## | | ??????????????# #??# ## ### # | | ??????????????# ### ####??## # | | ??????????????## #??????## # | | ???????????????## ##???????### | | ????????????????## ####??????????? | | ???????????????### ######????????? | | ?????###????#### #??####### | | ??????""????# #### ## ## | | ??????? ???## # | | ???????" ????# | | ???????? ??## # # # | | ????????? ??# # ## # | | ????????## ## # ## | | ????????# #< ######## | | ????????# R @ #??????# # # | | ????????# R #?# ##### | | ????????# #< #?# ####???## | | ??????? ###< #?# #???????#### | | ????? ???# ## ##??????????? | | ???? < ????## # #???????????? | | ???<#" ??????? #### ????????????? | | ????###???????# ???##????????????? | | ??????????????# ??????????????????? | | ??????????????## ??????????????????? | | ????????????????# ?????????????????? | | ????????????????? ??????????????????? | | ????????????????????????????????????? | | ????????????????????????????????????? | | ????????????????????????????????????? | | ????????????????????????????????????? | | ????????????????????????????????????? | | ????????????????????????????????????? | | ????????????????????????????????????? | | ????????????????????????????????????? | | ????????????????????????????????????? | | ????????????????????????????????????? | | ????????????????????????????????????? | | ????????????????????????????????????? | | ????????????????????????????????????? | +----------------------------------------------------+ Best States ------------- Heat Dissipation 39 Energy Generation 14 Energy Capacity 250 Matter Stores 300 Matter Capacity 300 Sight Range 16 Robot Scan Range 14 Terrain Scan Range 16 Terrain Scan Density 10 Armor Coverage 300 Resistance: KI 35 Resistance: TH 35 Resistance: EX 35 Resistance: EM 35 Resistance: I 35 Resistance: S 35 Resistance: P 35 Core Shielding 20 Evasion (%) 50 Recoil Reduction 2 Offensive Hacking 20 Item Schematics ----------------- None Robot Schematics ------------------ None Fabricated ------------ Nothing Repaired ---------- Nothing Studied --------- None Alien Tech Used ----------------- None Achievements -------------- None Challenges ------------ None Game ------ Seed EtherialBladeMonowheel Manual? 0 Play Time 00:24:02 Cumulative 277.8 hours Start 2026.01.13 @ 14:10:30 End 2026.01.13 @ 14:30:09 Sessions 1 Manual Loads 0 Difficulty Explorer Special Mode None Game No. 434 Rogue 0 Adventurer 0 Explorer 434 Win Type - Total 0 Types 0/0/0/0/0/0/0/0/0/0 Lore% 74 Gallery% 69 Achievement% 55 Wizard Run 0 Options --------- Layout 1 ASCII 0 Keyboard 0 Movement Mouse Keybinds 1 Fullscreen 1 Font 24/Smallcaps Map View 50x35 Zoom Use 0% Tactical HUD 1 Map Filters NONE Filters NONE Steam 1 RUN: ed9ae948-a921-49a3-a99c-ff036121ada8